fUST/lending_fUST_20251213
["ID","MTS","AMOUNT","RATE_DAILY","PERIOD"]
[398373459,1765559303942,-1481.27,0.00046027,120]
[398373460,1765559303988,-1504.62,0.00046027,120]
[398373462,1765559304042,-5032.62,0.00046027,120]
[398373464,1765559304093,-500.0,0.00046027,120]
[398373466,1765559304143,-1875.89,0.00046027,120]
[398373468,1765559304199,-672.23,0.00046027,120]
[398373470,1765559304252,-500.0,0.00046027,120]
[398373472,1765559304301,-558.94,0.00046027,120]
[398373474,1765559304347,-1234.93,0.00046027,120]
[398373475,1765559304396,-20681.97,0.00046027,120]
[398373477,1765559304448,-362.21139319,0.00046027,60]
[398373479,1765559304499,-1641.36,0.00046027,120]
[398373481,1765559304549,-2038.97,0.00046027,120]
[398373483,1765559304597,-500.0,0.00046027,120]
[398373485,1765559304645,-1642.86,0.00046027,120]
[398373487,1765559304695,-16052.6,0.00046027,120]
[398373489,1765559304741,-513.05,0.00046027,60]
[398373490,1765559304785,-1350.51,0.00046027,120]
[398373492,1765559304834,-615.38,0.00046027,120]
[398373494,1765559304885,-1014.18,0.00046027,120]
[398373496,1765559304936,-731.22,0.00046027,120]
[398373498,1765559304983,-500.0,0.00046027,120]
[398373500,1765559305031,-1750.24,0.00046027,120]
[398373502,1765559305079,-2037.28,0.00046027,120]
[398373503,1765559305123,-628.99,0.00046027,120]
[398373505,1765559305173,-2481.8875312,0.00046027,120]
[398373516,1765559305748,-176.88554856,0.00013273,2]
[398373517,1765559305767,-24.25994756,0.00013273,2]
[398373643,1765559313874,313.72046547,0.00019,120]
[398374010,1765559338920,-238.382571,0.00033,31]
[398374011,1765559338977,-238.382571,0.00033,31]
[398374012,1765559339033,-238.382571,0.00033,31]
[398374014,1765559339088,-238.382566,0.00033,31]
[398374016,1765559339155,-1500.0,0.00040547,120]
[398374018,1765559339207,-1277.9052995,0.00040821,120]
[398374019,1765559339258,-335.0,0.00041,90]
[398374021,1765559339311,-500.0,0.00041095,30]
[398374023,1765559339364,-500.0,0.00041095,120]
[398374025,1765559339416,-500.0,0.00041095,120]
[398374027,1765559339462,-500.0,0.00041095,120]
[398374028,1765559339508,-1075.08,0.00041095,120]
[398374030,1765559339554,-500.0,0.00041095,120]
[398374032,1765559339599,-798.8,0.00041095,120]
[398374034,1765559339645,-500.0,0.00041095,120]
[398374036,1765559339693,-500.0,0.00041095,120]
[398374037,1765559339739,-500.0,0.00041095,120]
[398374039,1765559339781,-500.0,0.00041095,120]
[398374041,1765559339823,-500.0,0.00041095,120]
[398374043,1765559339871,-500.0,0.00041095,120]
[398374044,1765559339916,-1542.86,0.00041095,120]
[398374046,1765559339969,-1289.7,0.00041095,120]
[398374048,1765559340013,-500.0,0.00041095,120]
[398374050,1765559340061,-500.0,0.00041095,120]
[398374052,1765559340111,-1597.54,0.00041095,120]
[398374053,1765559340161,-785.59,0.00041095,120]
[398374055,1765559340219,-500.0,0.00041095,120]
[398374057,1765559340268,-1700.73,0.00041095,120]
[398374059,1765559340318,-500.0,0.00041095,120]
[398374061,1765559340377,-500.0,0.00041095,120]
[398374063,1765559340440,-998.48,0.00041095,120]
[398374064,1765559340498,-500.0,0.00041095,120]
[398374066,1765559340546,-897.6,0.00041095,120]
[398374068,1765559340594,-500.0,0.00041095,120]
[398374070,1765559340639,-664.6,0.00041095,120]
[398374071,1765559340684,-500.0,0.00041095,120]
[398374073,1765559340730,-500.0,0.00041095,120]
[398374075,1765559340772,-2274.16,0.00041095,120]
[398374077,1765559340814,-601.53,0.00041095,120]
[398374078,1765559340861,-500.0,0.00041095,120]
[398374080,1765559340907,-500.0,0.00041095,120]
[398374082,1765559340953,-700.93,0.00041095,120]
[398374084,1765559340998,-500.0,0.00041095,120]
[398374085,1765559341046,-500.0,0.00041095,120]
[398374087,1765559341101,-500.0,0.00041095,120]
[398374089,1765559341152,-500.0,0.00041095,120]
[398374091,1765559341201,-500.0,0.00041095,120]
[398374093,1765559341249,-500.0,0.00041095,120]
[398374094,1765559341294,-718.61,0.00041095,120]
[398374096,1765559341345,-500.0,0.00041095,120]
[398374098,1765559341395,-500.0,0.00041095,120]
[398374100,1765559341443,-500.0,0.00041095,120]
[398374102,1765559341490,-500.0,0.00041095,120]
[398374103,1765559341534,-500.0,0.00041095,120]
[398374105,1765559341583,-501.23807303,0.00041095,120]
[398374107,1765559341633,-871.53,0.00041095,30]
[398374109,1765559341683,-972.83,0.00041095,120]
[398374111,1765559341730,-1714.48,0.00041095,120]
[398374112,1765559341780,-570.5,0.00041095,120]
[398374114,1765559341835,-500.0,0.00041369,30]
[398374116,1765559341890,-500.0,0.00041369,120]
[398374118,1765559341947,-500.0,0.00041369,120]
[398374120,1765559341993,-1075.08,0.00041369,120]
[398374121,1765559342041,-798.8,0.00041369,120]
[398374123,1765559342094,-500.0,0.00041369,120]
[398374125,1765559342145,-500.0,0.00041369,120]
[398374127,1765559342194,-500.0,0.00041369,120]
[398374129,1765559342238,-500.0,0.00041369,120]
[398374131,1765559342282,-1542.86,0.00041369,120]
[398374132,1765559342329,-1289.7,0.00041369,120]
[398374134,1765559342378,-500.0,0.00041369,120]
[398374136,1765559342427,-1597.54,0.00041369,120]
[398374138,1765559342475,-785.59,0.00041369,120]
[398374140,1765559342523,-500.0,0.00041369,120]
[398374141,1765559342574,-1700.73,0.00041369,120]
[398374143,1765559342621,-500.0,0.00041369,120]
[398374145,1765559342665,-998.48,0.00041369,120]
[398374147,1765559342707,-500.0,0.00041369,120]
[398374149,1765559342752,-897.6,0.00041369,120]
[398374150,1765559342795,-664.6,0.00041369,120]
[398374152,1765559342841,-500.0,0.00041369,120]
[398374154,1765559342888,-500.0,0.00041369,120]
[398374156,1765559342933,-2274.16,0.00041369,120]
[398374158,1765559342979,-601.53,0.00041369,120]
[398374159,1765559343029,-500.0,0.00041369,120]
[398374161,1765559343079,-265.366896,0.00041369,120]
[398374163,1765559343128,-700.93,0.00041369,120]
[398374167,1765559343333,-500.0,0.00041369,120]
[398374169,1765559343403,-529.12312731,0.00041369,120]
[398374170,1765559343460,-500.0,0.00041369,120]
[398374172,1765559343518,-500.0,0.00041369,120]
[398374174,1765559343570,-718.61,0.00041369,120]
[398374176,1765559343621,-500.0,0.00041369,120]
[398374178,1765559343673,-500.0,0.00041369,120]
[398374179,1765559343719,-500.0,0.00041369,120]
[398374181,1765559343768,-500.0,0.00041369,120]
[398374183,1765559343816,-871.53,0.00041369,30]
[398374185,1765559343872,-1714.48,0.00041369,120]
[398374187,1765559343921,-972.83,0.00041369,120]
[398374189,1765559343968,-335.0,0.0004137,90]
[398374190,1765559344020,-500.0,0.00041643,30]
[398374192,1765559344074,-500.0,0.00041643,120]
[398374194,1765559344127,-500.0,0.00041643,120]
[398374196,1765559344172,-1075.08,0.00041643,120]
[398374198,1765559344215,-798.8,0.00041643,120]
[398374199,1765559344261,-500.0,0.00041643,120]
[398374201,1765559344318,-500.0,0.00041643,120]
[398374203,1765559344379,-500.0,0.00041643,120]
[398374205,1765559344435,-500.0,0.00041643,120]
[398374207,1765559344486,-1542.86,0.00041643,120]
[398374209,1765559344539,-1289.7,0.00041643,120]
[398374211,1765559344594,-500.0,0.00041643,120]
[398374212,1765559344641,-1597.54,0.00041643,120]
[398374214,1765559344694,-785.59,0.00041643,120]
[398374216,1765559344752,-500.0,0.00041643,120]
[398374218,1765559344806,-1700.73,0.00041643,120]
[398374220,1765559344855,-500.0,0.00041643,120]
[398374222,1765559344907,-998.48,0.00041643,120]
[398374223,1765559344955,-500.0,0.00041643,120]
[398374224,1765559345004,-897.6,0.00041643,120]
[398374225,1765559345054,-664.6,0.00041643,120]
[398374226,1765559345108,-500.0,0.00041643,120]
[398374227,1765559345169,-500.0,0.00041643,120]
[398374228,1765559345227,-2274.16,0.00041643,120]
[398374229,1765559345284,-601.53,0.00041643,120]
[398374231,1765559345339,-500.0,0.00041643,120]
[398374233,1765559345393,-700.93,0.00041643,120]
[398374234,1765559345441,-500.0,0.00041643,120]
[398374236,1765559345498,-496.45729174,0.00041643,120]
[398374238,1765559345549,-500.0,0.00041643,120]
[398374240,1765559345597,-718.61,0.00041643,120]
[398374242,1765559345645,-500.0,0.00041643,120]
[398374243,1765559345691,-500.0,0.00041643,120]
[398374245,1765559345745,-500.0,0.00041643,120]
[398374247,1765559345802,-500.0,0.00041643,120]
[398374249,1765559345859,-871.53,0.00041643,30]
[398374251,1765559345912,-1714.48,0.00041643,120]
[398374252,1765559345966,-972.83,0.00041643,120]
[398374254,1765559346020,-500.0,0.00041917,30]
[398374256,1765559346074,-500.0,0.00041917,120]
[398374258,1765559346126,-500.0,0.00041917,120]
[398374260,1765559346177,-1075.08,0.00041917,120]
[398374261,1765559346224,-798.8,0.00041917,120]
[398374263,1765559346277,-500.0,0.00041917,120]
[398374265,1765559346329,-500.0,0.00041917,120]
[398374267,1765559346378,-500.0,0.00041917,120]
[398374269,1765559346426,-500.0,0.00041917,120]
[398374271,1765559346479,-1542.86,0.00041917,120]
[398374272,1765559346530,-1289.7,0.00041917,120]
[398374274,1765559346585,-500.0,0.00041917,120]
[398374276,1765559346638,-1597.54,0.00041917,120]
[398374278,1765559346687,-785.59,0.00041917,120]
[398374280,1765559346736,-500.0,0.00041917,120]
[398374281,1765559346782,-1700.73,0.00041917,120]
[398374283,1765559346833,-500.0,0.00041917,120]
[398374285,1765559346885,-998.48,0.00041917,120]
[398374287,1765559346933,-500.0,0.00041917,120]
[398374289,1765559346986,-897.6,0.00041917,120]
[398374291,1765559347033,-664.6,0.00041917,120]
[398374292,1765559347080,-500.0,0.00041917,120]
[398374294,1765559347131,-500.0,0.00041917,120]
[398374296,1765559347182,-2274.16,0.00041917,120]
[398374298,1765559347233,-601.53,0.00041917,120]
[398374300,1765559347280,-500.0,0.00041917,120]
[398374301,1765559347327,-700.93,0.00041917,120]
[398374303,1765559347379,-500.0,0.00041917,120]
[398374305,1765559347430,-500.0,0.00041917,120]
[398374307,1765559347480,-718.61,0.00041917,120]
[398374309,1765559347527,-500.0,0.00041917,120]
[398374311,1765559347574,-500.0,0.00041917,120]
[398374312,1765559347625,-500.0,0.00041917,120]
[398374314,1765559347678,-500.0,0.00041917,120]
[398374316,1765559347726,-871.53,0.00041917,30]
[398374318,1765559347775,-500.0,0.00042191,30]
[398374320,1765559347820,-500.0,0.00042191,120]
[398374321,1765559347869,-500.0,0.00042191,120]
[398374323,1765559347921,-1075.08,0.00042191,120]
[398374325,1765559347973,-798.8,0.00042191,120]
[398374327,1765559348023,-500.0,0.00042191,120]
[398374329,1765559348072,-500.0,0.00042191,120]
[398374330,1765559348122,-500.0,0.00042191,120]
[398374334,1765559348324,-500.0,0.00042191,120]
[398374336,1765559348390,-1542.86,0.00042191,120]
[398374338,1765559348455,-1289.7,0.00042191,120]
[398374340,1765559348513,-500.0,0.00042191,120]
[398374342,1765559348574,-1597.54,0.00042191,120]
[398374344,1765559348632,-785.59,0.00042191,120]
[398374346,1765559348692,-500.0,0.00042191,120]
[398374348,1765559348749,-1700.73,0.00042191,120]
[398374350,1765559348807,-500.0,0.00042191,120]
[398374351,1765559348856,-998.48,0.00042191,120]
[398374353,1765559348923,-500.0,0.00042191,120]
[398374355,1765559348992,-897.6,0.00042191,120]
[398374357,1765559349067,-664.6,0.00042191,120]
[398374359,1765559349149,-500.0,0.00042191,120]
[398374361,1765559349224,-500.0,0.00042191,120]
[398374363,1765559349282,-2274.16,0.00042191,120]
[398374364,1765559349333,-601.53,0.00042191,120]
[398374366,1765559349390,-500.0,0.00042191,120]
[398374368,1765559349444,-700.93,0.00042191,120]
[398374370,1765559349499,-500.0,0.00042191,120]
[398374372,1765559349551,-514.49660118,0.00042191,120]
[398374374,1765559349600,-718.61,0.00042191,120]
[398374375,1765559349650,-500.0,0.00042191,120]
[398374377,1765559349702,-500.0,0.00042191,120]
[398374379,1765559349752,-500.0,0.00042191,120]
[398374381,1765559349802,-500.0,0.00042191,120]
[398374383,1765559349857,-500.0,0.00042465,30]
[398374384,1765559349926,-500.0,0.00042465,120]
[398374386,1765559349999,-500.0,0.00042465,120]
[398374388,1765559350070,-1075.08,0.00042465,120]
[398374390,1765559350126,-798.8,0.00042465,120]
[398374392,1765559350181,-500.0,0.00042465,120]
[398374393,1765559350239,-500.0,0.00042465,120]
[398374395,1765559350295,-500.0,0.00042465,120]
[398374397,1765559350351,-394.09099057,0.00042465,120]
[398374399,1765559350406,-1542.86,0.00042465,120]
[398374401,1765559350462,-1289.7,0.00042465,120]
[398374402,1765559350513,-500.0,0.00042465,120]
[398374404,1765559350573,-1597.54,0.00042465,120]
[398374406,1765559350626,-785.59,0.00042465,120]
[398374408,1765559350678,-500.0,0.00042465,120]
[398374409,1765559350732,-1700.73,0.00042465,120]
[398374411,1765559350784,-500.0,0.00042465,120]
[398374413,1765559350839,-998.48,0.00042465,120]
[398374415,1765559350901,-500.0,0.00042465,120]
[398374417,1765559350960,-897.6,0.00042465,120]
[398374418,1765559351012,-664.6,0.00042465,120]
[398374420,1765559351070,-500.0,0.00042465,120]
[398374422,1765559351123,-500.0,0.00042465,120]
[398374424,1765559351178,-2274.16,0.00042465,120]
[398374425,1765559351227,-601.53,0.00042465,120]
[398374427,1765559351279,-500.0,0.00042465,120]
[398374429,1765559351332,-700.93,0.00042465,120]
[398374431,1765559351382,-500.0,0.00042465,120]
[398374432,1765559351432,-718.61,0.00042465,120]
[398374434,1765559351485,-500.0,0.00042465,120]
[398374436,1765559351535,-500.0,0.00042465,120]
[398374438,1765559351583,-500.0,0.00042465,120]
[398374439,1765559351631,-500.0,0.00042739,30]
[398374440,1765559351677,-500.0,0.00042739,120]
[398374441,1765559351723,-500.0,0.00042739,120]
[398374442,1765559351768,-1075.08,0.00042739,120]
[398374443,1765559351816,-798.8,0.00042739,120]
[398374444,1765559351866,-500.0,0.00042739,120]
[398374446,1765559351917,-500.0,0.00042739,120]
[398374448,1765559351964,-500.0,0.00042739,120]
[398374450,1765559352012,-1542.86,0.00042739,120]
[398374451,1765559352062,-1289.7,0.00042739,120]
[398374453,1765559352111,-500.0,0.00042739,120]
[398374455,1765559352159,-1597.54,0.00042739,120]
[398374456,1765559352206,-785.59,0.00042739,120]
[398374458,1765559352257,-500.0,0.00042739,120]
[398374460,1765559352307,-1700.73,0.00042739,120]
[398374462,1765559352355,-500.0,0.00042739,120]
[398374463,1765559352407,-998.48,0.00042739,120]
[398374465,1765559352460,-500.0,0.00042739,120]
[398374467,1765559352517,-897.6,0.00042739,120]
[398374469,1765559352573,-664.6,0.00042739,120]
[398374471,1765559352621,-500.0,0.00042739,120]
[398374472,1765559352671,-500.0,0.00042739,120]
[398374474,1765559352724,-2274.16,0.00042739,120]
[398374476,1765559352771,-601.53,0.00042739,120]
[398374478,1765559352816,-500.0,0.00042739,120]
[398374479,1765559352861,-700.93,0.00042739,120]
[398374481,1765559352911,-500.0,0.00042739,120]
[398374483,1765559352959,-718.61,0.00042739,120]
[398374485,1765559353011,-500.0,0.00042739,120]
[398374486,1765559353059,-500.0,0.00042739,120]
[398374488,1765559353115,-500.0,0.00042739,120]
[398374490,1765559353171,-500.0,0.00043013,30]
[398374492,1765559353219,-500.0,0.00043013,120]
[398374494,1765559353269,-500.0,0.00043013,120]
[398374495,1765559353318,-1075.08,0.00043013,120]
[398374497,1765559353372,-798.8,0.00043013,120]
[398374499,1765559353427,-500.0,0.00043013,120]
[398374503,1765559353653,-500.0,0.00043013,120]
[398374505,1765559353704,-500.0,0.00043013,120]
[398374507,1765559353753,-1542.86,0.00043013,120]
[398374509,1765559353802,-1289.7,0.00043013,120]
[398374510,1765559353850,-500.0,0.00043013,120]
[398374512,1765559353899,-1597.54,0.00043013,120]
[398374514,1765559353950,-785.59,0.00043013,120]
[398374516,1765559353999,-500.0,0.00043013,120]
[398374517,1765559354048,-1700.73,0.00043013,120]
[398374519,1765559354099,-500.0,0.00043013,120]
[398374521,1765559354150,-998.48,0.00043013,120]
[398374523,1765559354203,-500.0,0.00043013,120]
[398374524,1765559354253,-897.6,0.00043013,120]
[398374526,1765559354308,-664.6,0.00043013,120]
[398374528,1765559354366,-500.0,0.00043013,120]
[398374530,1765559354421,-500.0,0.00043013,120]
[398374532,1765559354472,-2274.16,0.00043013,120]
[398374533,1765559354521,-601.53,0.00043013,120]
[398374535,1765559354572,-500.0,0.00043013,120]
[398374537,1765559354626,-700.93,0.00043013,120]
[398374539,1765559354683,-500.0,0.00043013,120]
[398374541,1765559354733,-718.61,0.00043013,120]
[398374542,1765559354787,-500.0,0.00043013,120]
[398374544,1765559354841,-500.0,0.00043013,120]
[398374546,1765559354895,-500.0,0.00043013,120]
[398374548,1765559354952,-335.0,0.00043151,90]
[398374550,1765559355009,-500.0,0.00043287,30]
[398374552,1765559355059,-500.0,0.00043287,120]
[398374553,1765559355115,-500.0,0.00043287,120]
[398374555,1765559355170,-1075.08,0.00043287,120]
[398374557,1765559355224,-798.8,0.00043287,120]
[398374559,1765559355274,-500.0,0.00043287,120]
[398374560,1765559355323,-500.0,0.00043287,120]
[398374562,1765559355375,-500.0,0.00043287,120]
[398374564,1765559355426,-1542.86,0.00043287,120]
[398374566,1765559355477,-1289.7,0.00043287,120]
[398374568,1765559355525,-500.0,0.00043287,120]
[398374569,1765559355580,-1597.54,0.00043287,120]
[398374571,1765559355630,-785.59,0.00043287,120]
[398374573,1765559355676,-500.0,0.00043287,120]
[398374575,1765559355722,-1700.73,0.00043287,120]
[398374576,1765559355768,-500.0,0.00043287,120]
[398374578,1765559355815,-998.48,0.00043287,120]
[398374580,1765559355863,-500.0,0.00043287,120]
[398374582,1765559355909,-897.6,0.00043287,120]
[398374583,1765559355955,-664.6,0.00043287,120]
[398374585,1765559356003,-500.0,0.00043287,120]
[398374587,1765559356052,-500.0,0.00043287,120]
[398374589,1765559356100,-2274.16,0.00043287,120]
[398374591,1765559356147,-601.53,0.00043287,120]
[398374592,1765559356197,-500.0,0.00043287,120]
[398374594,1765559356248,-700.93,0.00043287,120]
[398374596,1765559356298,-500.0,0.00043287,120]
[398374598,1765559356349,-718.61,0.00043287,120]
[398374599,1765559356396,-500.0,0.00043287,120]
[398374601,1765559356457,-500.0,0.00043287,120]
[398374603,1765559356513,-471.73092783,0.00043287,120]
[398374605,1765559356565,-500.0,0.00043561,30]
[398374607,1765559356612,-500.0,0.00043561,120]
[398374609,1765559356659,-500.0,0.00043561,120]
[398374610,1765559356704,-1075.08,0.00043561,120]
[398374612,1765559356752,-798.8,0.00043561,120]
[398374614,1765559356797,-500.0,0.00043561,120]
[398374616,1765559356842,-500.0,0.00043561,120]
[398374618,1765559356892,-280.19583137,0.00043561,120]
[398374619,1765559356946,-1542.86,0.00043561,120]
[398374621,1765559357009,-1289.7,0.00043561,120]
[398374623,1765559357065,-500.0,0.00043561,120]
[398374625,1765559357119,-1597.54,0.00043561,120]
[398374627,1765559357170,-785.59,0.00043561,120]
[398374629,1765559357218,-500.0,0.00043561,120]
[398374630,1765559357265,-1700.73,0.00043561,120]
[398374632,1765559357313,-500.0,0.00043561,120]
[398374634,1765559357360,-998.48,0.00043561,120]
[398374636,1765559357406,-500.0,0.00043561,120]
[398374637,1765559357453,-897.6,0.00043561,120]
[398374639,1765559357501,-664.6,0.00043561,120]
[398374641,1765559357549,-500.0,0.00043561,120]
[398374643,1765559357596,-500.0,0.00043561,120]
[398374645,1765559357643,-2274.16,0.00043561,120]
[398374646,1765559357695,-601.53,0.00043561,120]
[398374648,1765559357761,-500.0,0.00043561,120]
[398374650,1765559357825,-700.93,0.00043561,120]
[398374652,1765559357888,-500.0,0.00043561,120]
[398374654,1765559357941,-718.61,0.00043561,120]
[398374655,1765559357992,-500.0,0.00043561,120]
[398374656,1765559358044,-500.0,0.00043561,120]
[398374657,1765559358095,-500.0,0.00043835,120]
[398374658,1765559358149,-517.94,0.00043835,120]
[398374659,1765559358203,-500.0,0.00043835,30]
[398374661,1765559358254,-500.0,0.00043835,120]
[398374663,1765559358302,-500.0,0.00043835,120]
[398374665,1765559358354,-1075.08,0.00043835,120]
[398374667,1765559358405,-798.8,0.00043835,120]
[398374668,1765559358455,-267.97814333,0.00043835,120]
[398374672,1765559358638,-500.0,0.00043835,120]
[398374674,1765559358689,-1542.86,0.00043835,120]
[398374676,1765559358741,-1289.7,0.00043835,120]
[398374678,1765559358790,-500.0,0.00043835,120]
[398374679,1765559358843,-1597.54,0.00043835,120]
[398374681,1765559358896,-785.59,0.00043835,120]
[398374683,1765559358954,-500.0,0.00043835,120]
[398374685,1765559359006,-1700.73,0.00043835,120]
[398374686,1765559359058,-500.0,0.00043835,120]
[398374688,1765559359116,-998.48,0.00043835,120]
[398374690,1765559359172,-500.0,0.00043835,120]
[398374692,1765559359229,-897.6,0.00043835,120]
[398374694,1765559359279,-664.6,0.00043835,120]
[398374696,1765559359329,-500.0,0.00043835,120]
[398374697,1765559359378,-500.0,0.00043835,120]
[398374699,1765559359430,-2274.16,0.00043835,120]
[398374701,1765559359480,-601.53,0.00043835,120]
[398374703,1765559359530,-500.0,0.00043835,120]
[398374705,1765559359575,-700.93,0.00043835,120]
[398374706,1765559359624,-500.0,0.00043835,120]
[398374708,1765559359676,-718.61,0.00043835,120]
[398374710,1765559359725,-500.0,0.00043835,120]
[398374712,1765559359769,-500.0,0.00043835,120]
[398374714,1765559359815,-1244.67,0.00044109,120]
[398374715,1765559359861,-482.1675454,0.00044109,120]
[398374717,1765559359915,-517.94,0.00044109,120]
[398374719,1765559359965,-500.0,0.00044109,30]
[398374721,1765559360012,-500.0,0.00044109,120]
[398374723,1765559360058,-500.0,0.00044109,120]
[398374724,1765559360103,-1075.08,0.00044109,120]
[398374726,1765559360151,-798.8,0.00044109,120]
[398374728,1765559360200,-367.30345498,0.00044109,120]
[398374730,1765559360248,-1542.86,0.00044109,120]
[398374732,1765559360294,-1289.7,0.00044109,120]
[398374733,1765559360342,-500.0,0.00044109,120]
[398374735,1765559360395,-1597.54,0.00044109,120]
[398374737,1765559360446,-785.59,0.00044109,120]
[398374739,1765559360493,-500.0,0.00044109,120]
[398374741,1765559360537,-1700.73,0.00044109,120]
[398374742,1765559360583,-258.06625827,0.00044109,120]
[398374744,1765559360633,-998.48,0.00044109,120]
[398374746,1765559360692,-500.0,0.00044109,120]
[398374748,1765559360740,-897.6,0.00044109,120]
[398374750,1765559360788,-664.6,0.00044109,120]
[398374752,1765559360844,-500.0,0.00044109,120]
[398374754,1765559360901,-500.0,0.00044109,120]
[398374756,1765559360961,-2274.16,0.00044109,120]
[398374757,1765559361008,-601.53,0.00044109,120]
[398374759,1765559361058,-500.0,0.00044109,120]
[398374761,1765559361106,-700.93,0.00044109,120]
[398374763,1765559361155,-500.0,0.00044109,120]
[398374765,1765559361203,-718.61,0.00044109,120]
[398374766,1765559361248,-500.0,0.00044109,120]
[398374768,1765559361295,-500.0,0.00044109,120]
[398374770,1765559361346,-1244.67,0.00044383,120]
[398374772,1765559361398,-517.94,0.00044383,120]
[398374774,1765559361446,-500.0,0.00044383,30]
[398374775,1765559361492,-500.0,0.00044383,120]
[398374777,1765559361539,-500.0,0.00044383,120]
[398374779,1765559361585,-1075.08,0.00044383,120]
[398374781,1765559361633,-798.8,0.00044383,120]
[398374783,1765559361678,-1542.86,0.00044383,120]
[398374784,1765559361725,-1289.7,0.00044383,120]
[398374786,1765559361776,-500.0,0.00044383,120]
[398374788,1765559361824,-1597.54,0.00044383,120]
[398374790,1765559361871,-785.59,0.00044383,120]
[398374792,1765559361915,-500.0,0.00044383,120]
[398374793,1765559361962,-1700.73,0.00044383,120]
[398374795,1765559362013,-998.48,0.00044383,120]
[398374797,1765559362062,-500.0,0.00044383,120]
[398374799,1765559362110,-897.6,0.00044383,120]
[398374801,1765559362158,-664.6,0.00044383,120]
[398374803,1765559362208,-500.0,0.00044383,120]
[398374804,1765559362261,-500.0,0.00044383,120]
[398374806,1765559362315,-2274.16,0.00044383,120]
[398374808,1765559362367,-601.53,0.00044383,120]
[398374810,1765559362416,-500.0,0.00044383,120]
[398374812,1765559362462,-700.93,0.00044383,120]
[398374813,1765559362507,-500.0,0.00044383,120]
[398374815,1765559362553,-718.61,0.00044383,120]
[398374817,1765559362598,-500.0,0.00044383,120]
[398374818,1765559362644,-500.0,0.00044383,120]
[398374820,1765559362695,-1244.67,0.00044657,120]
[398374822,1765559362749,-517.94,0.00044657,120]
[398374824,1765559362798,-500.0,0.00044657,30]
[398374826,1765559362847,-500.0,0.00044657,120]
[398374828,1765559362902,-500.0,0.00044657,120]
[398374829,1765559362954,-1075.08,0.00044657,120]
[398374831,1765559363006,-798.8,0.00044657,120]
[398374833,1765559363060,-1542.86,0.00044657,120]
[398374835,1765559363112,-1289.7,0.00044657,120]
[398374837,1765559363163,-500.0,0.00044657,120]
[398374838,1765559363215,-1597.54,0.00044657,120]
[398374840,1765559363269,-785.59,0.00044657,120]
[398374844,1765559363467,-500.0,0.00044657,120]
[398374846,1765559363521,-1700.73,0.00044657,120]
[398374848,1765559363573,-998.48,0.00044657,120]
[398374850,1765559363624,-500.0,0.00044657,120]
[398374852,1765559363674,-897.6,0.00044657,120]
[398374853,1765559363725,-664.6,0.00044657,120]